bitfinex/quotes_BTCUSD_20250718
["timestamp","ask_amount","ask_price","bid_price","bid_amount"]
[1752797130263,0.06478003,119400.0,119390.0,0.33330057]
[1752797130696,0.02512667,119390.0,119380.0,0.21528539]
[1752797130920,0.22392488,119390.0,119380.0,0.32762179]
[1752797131134,0.20844398,119390.0,119380.0,0.18728539]
[1752797131373,0.20844398,119390.0,119380.0,0.19566172]
[1752797131583,0.20844398,119390.0,119380.0,0.19566186]
[1752797131804,0.20844398,119390.0,119380.0,0.003]
[1752797131805,0.20946821,119390.0,119380.0,0.003]
[1752797132706,0.67519226,119390.0,119380.0,0.003]
[1752797133996,0.57514113,119390.0,119380.0,0.003]
[1752797134215,0.56574113,119390.0,119380.0,0.003]
[1752797134446,0.69770113,119390.0,119380.0,0.003]
[1752797135150,0.67910113,119390.0,119380.0,0.003]
[1752797135792,0.68010113,119390.0,119380.0,0.003]
[1752797135981,0.66920113,119390.0,119380.0,0.003]
[1752797136391,0.30047821,119390.0,119380.0,0.003]
[1752797137974,0.32715591,119390.0,119380.0,0.003]
[1752797140094,0.33805591,119390.0,119380.0,0.003]
[1752797140506,0.34745591,119390.0,119380.0,0.003]
[1752797142389,0.32177821,119390.0,119380.0,0.003]
[1752797145847,0.30147821,119390.0,119380.0,0.003]
[1752797146252,0.30717821,119390.0,119380.0,0.003]
[1752797146456,0.32747821,119390.0,119380.0,0.003]
[1752797147923,0.33259974,119390.0,119380.0,0.003]
[1752797148672,0.0414968,119390.0,119380.0,0.24294123]
[1752797148914,0.0414968,119390.0,119380.0,0.28566532]
[1752797149146,0.06662332,119390.0,119380.0,0.24294123]
[1752797149377,0.06662325,119390.0,119380.0,0.24294123]
[1752797149574,0.05824762,119390.0,119380.0,0.24294123]
[1752797149847,0.0077,119390.0,119380.0,0.32845151]
[1752797152267,0.002,119390.0,119380.0,0.38183791]
[1752797153349,0.002,119390.0,119380.0,0.32845151]
[1752797153975,0.01037527,119390.0,119380.0,0.46117151]
[1752797154175,0.01875068,119390.0,119380.0,0.46113151]
[1752797154388,0.18626954,119390.0,119380.0,0.05028]
[1752797154596,0.38537683,119390.0,119380.0,0.003]
[1752797154822,0.38537683,119390.0,119380.0,0.01137661]
[1752797155030,0.37700127,119390.0,119380.0,0.01137661]
[1752797155386,0.37700127,119390.0,119380.0,0.003]
[1752797156466,0.37700127,119390.0,119380.0,0.17890878]
[1752797157791,0.37700127,119390.0,119380.0,0.003]
[1752797158156,0.38270127,119390.0,119380.0,0.003]
[1752797158933,0.38270127,119390.0,119380.0,0.17890885]
[1752797159623,0.38270127,119390.0,119380.0,0.18728539]
[1752797160027,0.31631398,119390.0,119380.0,0.18728539]
[1752797160232,0.31631398,119390.0,119380.0,0.003]
[1752797161115,0.31631398,119390.0,119380.0,0.17890878]
[1752797161493,0.31631398,119390.0,119380.0,0.003]
[1752797163032,0.8487524,119390.0,119380.0,0.003]
[1752797163993,0.8467524,119390.0,119380.0,0.003]
[1752797164417,0.8497524,119390.0,119380.0,0.003]
[1752797164820,0.78336511,119390.0,119380.0,0.003]
[1752797166937,0.77766511,119390.0,119380.0,0.003]
[1752797167603,0.64494511,119390.0,119380.0,0.003]
[1752797167816,0.75166511,119390.0,119380.0,0.003]
[1752797168421,0.75266511,119390.0,119380.0,0.003]
[1752797168794,0.75266511,119390.0,119380.0,0.0264]
[1752797169521,0.66715483,119390.0,119380.0,0.22808885]
[1752797169768,0.66715483,119390.0,119380.0,0.23023885]
[1752797169984,0.66715483,119390.0,119380.0,0.23861539]
[1752797169985,0.01237577,119390.0,119380.0,0.23861539]
[1752797170194,0.16184667,119390.0,119380.0,0.25536784]
[1752797170632,0.17022251,119390.0,119380.0,0.25536784]
[1752797171050,0.33774072,119390.0,119380.0,0.24699172]
[1752797171167,0.32098982,119390.0,119380.0,0.23023885]
[1752797171368,0.31261405,119390.0,119380.0,0.05433]
[1752797179780,0.31261405,119390.0,119380.0,0.05218]
[1752797180617,0.3271549,119390.0,119380.0,0.003]
[1752797184756,0.41266518,119390.0,119380.0,0.003]
[1752797184939,0.44446518,119390.0,119380.0,0.003]
[1752797186287,0.78446518,119390.0,119380.0,0.003]
[1752797186737,0.83446518,119390.0,119380.0,0.003]
[1752797187274,0.83346518,119390.0,119380.0,0.003]
[1752797187478,0.78546518,119390.0,119380.0,0.003]
[1752797187689,0.78246518,119390.0,119380.0,0.003]
[1752797187888,0.78446518,119390.0,119380.0,0.003]
[1752797194292,0.83446518,119390.0,119380.0,1e-08]
[1752797194932,0.83446518,119390.0,119360.0,0.003]
[1752797194933,0.53884126,119370.0,119360.0,0.003]
[1752797195150,0.859859,119370.0,119360.0,1e-08]
[1752797195806,0.54103129,119350.0,119340.0,0.003]
[1752797196057,0.74216157,119350.0,119340.0,0.003]
[1752797197556,0.75316157,119350.0,119340.0,0.004]
[1752797198277,0.77863426,119350.0,119340.0,0.004]
[1752797199108,0.79533426,119350.0,119340.0,0.004]
[1752797199562,0.77863426,119350.0,119340.0,0.004]
[1752797199777,0.82497511,119350.0,119340.0,0.004]
[1752797201334,0.80987511,119350.0,119340.0,0.004]
[1752797202024,0.81487511,119350.0,119340.0,0.004]
[1752797204012,0.79817511,119350.0,119340.0,0.004]
[1752797204432,0.79817511,119350.0,119340.0,0.0546]
[1752797204655,0.79797511,119350.0,119340.0,0.05655]
[1752797205046,0.65131426,119350.0,119340.0,0.05655]
[1752797205259,0.56580398,119350.0,119340.0,0.2241384]
[1752797205472,0.37250483,119350.0,119340.0,0.23251767]
[1752797205693,0.35796398,119350.0,119340.0,0.23251767]
[1752797205935,0.35796398,119350.0,119340.0,0.23251782]
[1752797206125,0.37250483,119350.0,119340.0,0.24089716]
[1752797206325,0.36412647,119350.0,119340.0,0.24089716]
[1752797206771,0.36412647,119350.0,119340.0,0.05655]
[1752797206945,0.3557479,119350.0,119340.0,0.05655]
[1752797207355,0.33027521,119350.0,119340.0,0.05655]
[1752797207561,0.32411293,119350.0,119340.0,0.23251767]
[1752797208048,0.32411293,119350.0,119340.0,0.05655]
[1752797208167,0.31573436,119350.0,119340.0,0.05655]
[1752797209430,0.31573436,119350.0,119340.0,0.06492942]
[1752797209641,0.31573436,119350.0,119340.0,0.24089709]
[1752797209862,0.32411293,119350.0,119340.0,0.24089709]
[1752797211359,0.32981293,119350.0,119340.0,0.24927622]
[1752797211558,0.19523455,119350.0,119340.0,0.25765514]
[1752797211904,0.18685619,119350.0,119340.0,0.25765514]
[1752797212063,0.19523448,119350.0,119340.0,0.25765514]
[1752797212482,0.18685619,119350.0,119340.0,0.25765514]
[1752797213053,0.20308194,119350.0,119340.0,0.25765514]
[1752797213786,0.21983887,119350.0,119340.0,0.25765514]
[1752797214156,0.2114603,119350.0,119340.0,0.25765514]
[1752797214488,0.21146023,119350.0,119340.0,0.25765514]
[1752797214693,0.20308194,119350.0,119340.0,0.25765514]
[1752797214898,0.19446372,119350.0,119340.0,0.25765514]
[1752797215150,0.05416557,119350.0,119340.0,0.34316542]
[1752797215561,0.02954753,119350.0,119340.0,0.52712002]
[1752797216403,0.03292561,119350.0,119340.0,0.34316542]
[1752797216626,0.19847919,119350.0,119340.0,0.10655]
[1752797216844,0.34091896,119350.0,119340.0,0.10655]
[1752797217069,0.40730625,119350.0,119340.0,0.29089701]
[1752797217289,0.40730625,119350.0,119340.0,0.29927621]
[1752797217481,0.40730625,119350.0,119340.0,0.3076552]
[1752797217688,0.40830625,119350.0,119340.0,0.29089701]
[1752797218097,0.40830625,119350.0,119340.0,0.29927621]
[1752797218248,0.33091896,119350.0,119340.0,0.29827621]
[1752797218607,0.33091896,119350.0,119340.0,0.28989701]
[1752797218807,0.33191896,119350.0,119340.0,0.28989701]
[1752797219015,0.32354053,119350.0,119340.0,0.10555]
[1752797219242,0.66354053,119350.0,119340.0,0.0536]
[1752797220508,0.68887878,119350.0,119340.0,0.0536]
[1752797221352,0.70341963,119350.0,119340.0,0.0536]
[1752797221563,0.82082991,119350.0,119340.0,0.003]
[1752797221787,0.81512991,119350.0,119340.0,0.003]
[1752797222220,0.8307161,119350.0,119340.0,0.003]
[1752797222425,0.8797161,119350.0,119340.0,0.003]
[1752797222629,0.8787161,119350.0,119340.0,0.003]
[1752797222894,0.8837161,119350.0,119340.0,0.003]
[1752797223126,0.8947161,119350.0,119340.0,0.004]
[1752797223326,0.8837161,119350.0,119340.0,0.003]
[1752797223500,0.8337161,119350.0,119340.0,0.003]
[1752797223726,0.8837161,119350.0,119340.0,0.003]
[1752797223952,0.8787161,119350.0,119340.0,0.003]
[1752797224383,0.8847161,119350.0,119340.0,0.004]
[1752797224936,0.8195161,119350.0,119340.0,0.004]
[1752797225159,0.8528161,119350.0,119340.0,0.004]
[1752797226029,0.83722991,119350.0,119340.0,0.004]
[1752797226927,0.78722991,119350.0,119340.0,0.004]
[1752797227145,0.83722991,119350.0,119340.0,0.004]
[1752797227368,0.78722991,119350.0,119340.0,0.004]
[1752797227597,0.32064906,119350.0,119340.0,0.03574]
[1752797227823,0.45308906,119350.0,119340.0,0.05954]
[1752797228260,0.46762991,119350.0,119340.0,0.05954]
[1752797228481,0.80762991,119350.0,119340.0,0.05954]
[1752797230270,0.72211963,119350.0,119340.0,0.05954]
[1752797235035,0.24967963,119350.0,119340.0,0.05954]
[1752797235240,0.23513878,119350.0,119340.0,0.23550782]
[1752797235444,0.36773878,119350.0,119340.0,0.24388716]
[1752797236070,0.36773878,119350.0,119340.0,0.23550782]
[1752797236740,0.36773878,119350.0,119340.0,0.24388716]
[1752797237743,0.36773878,119350.0,119340.0,0.23550782]
[1752797237917,0.35936014,119350.0,119340.0,0.05954]
[1752797244220,0.35936014,119350.0,119340.0,0.23550774]
[1752797244426,0.35936014,119350.0,119340.0,0.05954]
[1752797244636,0.35936014,119350.0,119340.0,0.23550782]
[1752797244829,0.35936014,119350.0,119340.0,0.24388716]
[1752797245041,0.35936014,119350.0,119340.0,0.23550782]
[1752797245257,0.35936014,119350.0,119340.0,0.05954]
[1752797254492,0.45941127,119350.0,119340.0,0.0543]
[1752797256680,0.45941127,119350.0,119330.0,0.0481]
[1752797256681,0.16760104,119340.0,119330.0,0.0481]
[1752797256897,0.53890304,119330.0,119320.0,0.003]
[1752797257107,0.18215734,119320.0,119300.0,0.005]
[1752797257326,0.30833192,119310.0,119300.0,0.0501]
[1752797257722,0.30833192,119310.0,119300.0,0.0255]
[1752797258127,0.30833192,119310.0,119300.0,0.0260028]
[1752797258805,0.18218544,119300.0,119280.0,0.0503]
[1752797259003,0.40845256,119290.0,119280.0,0.04735027]
[1752797259134,0.40845256,119290.0,119280.0,0.02455027]
[1752797259346,0.43403574,119290.0,119280.0,0.00225027]
[1752797260134,0.43403574,119290.0,119280.0,0.00325027]
[1752797260957,0.43803574,119290.0,119280.0,0.00325027]
[1752797261367,0.43803574,119290.0,119280.0,0.00225027]
[1752797261628,0.1906118,119270.0,119260.0,1.0022]
[1752797261827,0.40832208,119270.0,119260.0,1.00225028]
[1752797262907,0.40932208,119270.0,119260.0,1.01325028]
[1752797263163,0.40832208,119270.0,119260.0,1.00525028]
[1752797263381,0.40832208,119270.0,119260.0,1.00225028]
[1752797263582,0.40932208,119270.0,119260.0,1.00425028]
[1752797264621,0.41032208,119270.0,119260.0,1.00525028]
[1752797264814,0.41032208,119270.0,119260.0,0.99686721]
[1752797265323,0.41032208,119270.0,119260.0,0.98848414]
[1752797269487,0.41849236,119270.0,119260.0,0.98848414]
[1752797272095,0.41849236,119270.0,119260.0,0.99148414]
[1752797272432,0.41032208,119270.0,119260.0,0.99148414]
[1752797273312,0.27812208,119270.0,119260.0,0.99148414]
[1752797273521,0.41020208,119270.0,119260.0,1.01518414]
[1752797273731,0.41016208,119270.0,119260.0,1.01518414]
[1752797274339,0.41016208,119270.0,119260.0,0.99148414]
[1752797276352,0.41832514,119270.0,119260.0,0.99148414]
[1752797276791,0.28628514,119270.0,119260.0,0.99148414]
[1752797277021,0.41824514,119270.0,119260.0,1.01498414]
[1752797278046,0.41824514,119270.0,119260.0,0.98009965]
[1752797278047,0.75824514,119270.0,119260.0,0.98009965]
[1752797278629,0.77504514,119270.0,119260.0,0.98009965]
[1752797279336,0.77404514,119270.0,119260.0,0.97809965]
[1752797279660,0.78304514,119270.0,119260.0,0.97809965]
[1752797279911,0.78304514,119270.0,119260.0,0.96971516]
[1752797280334,0.79404514,119270.0,119260.0,0.96233067]
[1752797280506,0.77724514,119270.0,119260.0,0.96233067]
[1752797280723,0.77724514,119270.0,119260.0,0.95394618]
[1752797281129,0.64528514,119270.0,119260.0,0.95394618]
[1752797281329,0.77720514,119270.0,119260.0,1.00703618]
[1752797282808,0.77720514,119270.0,119260.0,0.95394618]
[1752797284139,0.76904208,119270.0,119260.0,0.95394618]
[1752797284984,0.76904208,119270.0,119260.0,0.95697618]
[1752797285987,0.76932208,119270.0,119260.0,1.00393618]
[1752797289468,0.42932208,119270.0,119260.0,1.00393618]
[1752797291377,0.44495519,119270.0,119260.0,1.00393618]
[1752797291630,0.45288259,119270.0,119260.0,1.00393618]
[1752797291853,0.45288259,119270.0,119260.0,1.00177618]
[1752797293178,0.45288259,119270.0,119260.0,0.95394618]
[1752797295293,0.45288259,119270.0,119260.0,0.95697618]
[1752797295967,0.43724948,119270.0,119260.0,0.95697618]
[1752797296173,0.45288993,119270.0,119260.0,0.95697618]
[1752797296377,0.45288993,119270.0,119260.0,1.00347618]
[1752797296594,0.45288993,119270.0,119260.0,1.00563618]
[1752797297035,0.32068993,119270.0,119260.0,1.00563618]
[1752797297188,0.45260993,119270.0,119260.0,1.00563618]
[1752797297368,0.43696948,119270.0,119260.0,1.00563618]
[1752797297971,0.30504948,119270.0,119260.0,1.00563618]
[1752797298192,0.43700948,119270.0,119260.0,1.00563618]
[1752797298802,0.43700948,119270.0,119260.0,1.00347618]
[1752797299005,0.43700948,119270.0,119260.0,0.95697618]
[1752797299430,0.45264861,119270.0,119260.0,0.95697618]
[1752797299652,0.45264861,119270.0,119260.0,0.98147618]
[1752797300064,0.45264861,119270.0,119260.0,1.00407618]
[1752797301409,0.32068861,119270.0,119260.0,1.00623618]
[1752797301611,0.45260861,119270.0,119260.0,1.00623618]
[1752797301856,0.45256861,119270.0,119260.0,1.00623618]
[1752797304379,0.30504948,119270.0,119260.0,1.00623618]
[1752797304574,0.43700948,119270.0,119260.0,1.00623618]
[1752797304778,0.30504948,119270.0,119260.0,1.00623618]
[1752797304979,0.43696948,119270.0,119260.0,1.00623618]
[1752797305181,0.29050863,119270.0,119260.0,1.00623618]
[1752797305620,0.42238863,119270.0,119260.0,1.00623618]
[1752797311359,0.42226863,119270.0,119260.0,1.00623618]
[1752797316146,0.29050863,119270.0,119260.0,1.00623618]
[1752797316335,0.42226863,119270.0,119260.0,1.00623618]
[1752797318881,0.43680948,119270.0,119260.0,1.00407618]
[1752797321787,0.43680948,119270.0,119260.0,0.95394618]
[1752797321933,0.43680948,119270.0,119260.0,1.00307618]
[1752797322135,0.30504948,119270.0,119260.0,1.00307618]
[1752797322381,0.43680948,119270.0,119260.0,1.00307618]
[1752797328858,0.43680948,119270.0,119260.0,1.00515618]
[1752797329226,0.43676948,119270.0,119260.0,1.00515618]
[1752797329433,0.42222863,119270.0,119260.0,1.00515618]
[1752797329930,0.43676948,119270.0,119260.0,1.00515618]
[1752797335015,0.43676948,119270.0,119260.0,1.00307618]
[1752797335592,0.43676948,119270.0,119260.0,1.00515618]
[1752797337421,0.29712208,119270.0,119260.0,1.00515618]
[1752797337652,0.42884208,119270.0,119260.0,1.00515618]
[1752797342485,0.43708839,119270.0,119260.0,1.00515618]
[1752797342894,0.30536839,119270.0,119260.0,1.00515618]
[1752797343068,0.43708839,119270.0,119260.0,1.00515618]
[1752797343291,0.30536839,119270.0,119260.0,0.05326028]
[1752797343500,0.43093166,119270.0,119260.0,0.2209611]
[1752797343701,0.16610029,119270.0,119260.0,0.25450026]
[1752797343913,0.03438029,119270.0,119260.0,0.25450026]
[1752797344100,0.16610029,119270.0,119260.0,0.25450026]
[1752797344315,0.16773413,119270.0,119260.0,0.25350026]
[1752797344479,0.15110384,119270.0,119260.0,0.25350026]
[1752797344695,0.15410384,119270.0,119260.0,0.25350026]
[1752797344896,0.16248782,119270.0,119260.0,0.25350026]
[1752797345089,0.15148782,119270.0,119260.0,0.25250026]
[1752797345438,0.13572,119270.0,119260.0,0.33901054]
[1752797345618,0.41322908,119290.0,119280.0,0.23992275]
[1752797345619,0.06105588,119290.0,119280.0,0.23992275]
[1752797345819,0.16704658,119290.0,119280.0,0.24198275]
[1752797345977,0.16704658,119290.0,119280.0,0.24521275]
[1752797346183,0.34308815,119290.0,119280.0,0.24521289]
[1752797346399,0.13372,119290.0,119280.0,0.33910631]
[1752797346603,0.002,119290.0,119280.0,0.33910631]
[1752797346805,0.13172,119300.0,119290.0,0.23950659]
[1752797347030,0.13989107,119300.0,119290.0,0.24156659]
[1752797347279,0.14827273,119300.0,119290.0,0.24479659]
[1752797347447,0.14848346,119300.0,119290.0,0.24479659]
[1752797347662,0.14010166,119300.0,119290.0,0.24479659]
[1752797348029,0.13172,119300.0,119290.0,0.24479659]
[1752797348238,0.13172,119300.0,119290.0,0.46202687]
[1752797348482,0.13372,119310.0,119300.0,0.24079041]
[1752797348676,0.14210089,119310.0,119300.0,0.24608041]
[1752797348894,0.15048192,119310.0,119300.0,0.24608041]
[1752797349118,0.15886316,119310.0,119300.0,0.24608041]
[1752797349341,0.16724454,119310.0,119300.0,0.24608041]
[1752797349572,0.15886316,119310.0,119300.0,0.24608041]
[1752797349790,0.15048192,119310.0,119300.0,0.24608041]
[1752797349991,0.14410089,119310.0,119300.0,0.25508041]
[1752797350195,0.15248192,119310.0,119300.0,0.25508041]
[1752797350448,0.14410089,119310.0,119300.0,0.25508041]
[1752797350657,0.15248192,119310.0,119300.0,0.25508041]
[1752797350793,0.16086316,119310.0,119300.0,0.25508041]
[1752797351007,0.17762585,119310.0,119300.0,0.25508041]
[1752797351202,0.16924447,119310.0,119300.0,0.25508041]
[1752797352063,0.16086316,119310.0,119300.0,0.25508041]
[1752797352267,0.16086302,119310.0,119300.0,0.25508041]
[1752797352545,0.15248192,119310.0,119300.0,0.34059069]
[1752797352717,0.1692444,119310.0,119300.0,0.34059069]
[1752797352919,0.17762578,119310.0,119300.0,0.34059069]
[1752797353119,0.1702444,119310.0,119300.0,0.34859069]
[1752797354050,0.02176192,119310.0,119300.0,0.34859069]
[1752797354231,0.03014309,119310.0,119300.0,0.34859069]
[1752797354575,0.01338089,119310.0,119300.0,0.34859069]
[1752797354780,0.005,119310.0,119300.0,0.34859069]
[1752797355232,0.005,119310.0,119300.0,0.4150641]
[1752797355643,0.01338089,119310.0,119300.0,0.4150641]
[1752797356089,0.02176185,119310.0,119300.0,0.4150641]
[1752797356513,0.03014288,119310.0,119300.0,0.4150641]
[1752797356717,0.03852412,119310.0,119300.0,0.34859069]
[1752797356923,0.21453604,119310.0,119300.0,0.34859069]
[1752797357110,0.0469055,119310.0,119300.0,0.48027069]
[1752797357594,0.03852412,119310.0,119300.0,0.48027069]
[1752797357799,0.0469055,119310.0,119300.0,0.48055069]
[1752797358413,0.0469055,119310.0,119300.0,0.49454071]
[1752797358628,0.04690606,119310.0,119300.0,0.49454071]
[1752797359291,0.03014323,119310.0,119300.0,0.49454071]
[1752797359501,0.03014316,119310.0,119300.0,0.49454071]
[1752797359712,0.03852454,119310.0,119300.0,0.49454071]
[1752797360182,0.03014316,119310.0,119300.0,0.49454071]
[1752797360349,0.03852454,119310.0,119300.0,0.49454071]
[1752797360550,0.19777454,119310.0,119300.0,0.33182702]
[1752797360789,0.18939337,119310.0,119300.0,0.33182709]
[1752797360995,0.18939337,119310.0,119300.0,0.34859132]
[1752797361422,0.18939337,119310.0,119300.0,0.35697333]
[1752797361631,0.18939337,119310.0,119300.0,0.36535492]
[1752797361835,0.02176283,119310.0,119300.0,0.36535422]
[1752797362036,0.19777489,119310.0,119300.0,0.36535422]
[1752797362536,0.03014435,119310.0,119300.0,0.36535422]
[1752797362978,0.19777489,119310.0,119300.0,0.36535422]
[1752797363106,0.19777489,119310.0,119300.0,0.35697249]
[1752797363542,0.02176283,119310.0,119300.0,0.35697249]
[1752797363778,0.02176283,119310.0,119300.0,0.70535422]
[1752797364093,0.02176255,119310.0,119300.0,0.70535422]
[1752797364553,0.03014344,119310.0,119300.0,0.70535422]
[1752797364888,0.02176213,119310.0,119300.0,0.70535422]
[1752797365094,0.02176199,119310.0,119300.0,0.70535422]
[1752797365318,0.01338096,119310.0,119300.0,0.70535422]
[1752797366619,0.03014337,119310.0,119300.0,0.70535422]
[1752797366742,0.03852475,119310.0,119300.0,0.70535422]
[1752797366953,0.03852461,119310.0,119300.0,0.70535422]
[1752797367184,0.03014323,119310.0,119300.0,0.70535422]
[1752797367390,0.02176206,119310.0,119300.0,0.70535422]
[1752797368078,0.0301433,119310.0,119300.0,0.70535422]
[1752797368720,0.03852468,119310.0,119300.0,0.70535422]
[1752797369325,0.20615522,119310.0,119300.0,0.59469854]
[1752797369526,0.20615522,119310.0,119300.0,0.60308041]
[1752797369827,0.20615522,119310.0,119300.0,0.59469882]
[1752797369828,0.19777426,119310.0,119300.0,0.59469882]
[1752797370057,0.18939316,119310.0,119300.0,0.59469882]
[1752797370268,0.18939316,119310.0,119300.0,0.59469889]
[1752797370472,0.18939316,119310.0,119300.0,0.6030809]
[1752797370613,0.15340262,119310.0,119300.0,0.6198445]
[1752797370835,0.02176262,119310.0,119300.0,0.6198445]
[1752797371020,0.15340262,119310.0,119300.0,0.6198445]
[1752797371731,0.02176262,119310.0,119300.0,0.6198445]
[1752797372032,0.16178358,119310.0,119300.0,0.6198445]
[1752797372378,0.17016496,119310.0,119300.0,0.6198445]
[1752797373219,0.03852496,119310.0,119300.0,0.6198445]
[1752797373429,0.15340227,119310.0,119300.0,0.6198445]
[1752797373859,0.16178365,119310.0,119300.0,0.6198445]
[1752797374481,0.33779564,119310.0,119300.0,0.6030809]
[1752797374684,0.32941461,119310.0,119300.0,0.59469896]
[1752797374896,0.32941461,119310.0,119300.0,0.60308104]
[1752797375353,0.32941461,119310.0,119300.0,0.74310305]
[1752797375562,0.32941461,119310.0,119300.0,0.75148436]
[1752797375757,0.16178407,119310.0,119300.0,0.75148436]
[1752797375967,0.32941461,119310.0,119300.0,0.73472083]
[1752797377513,0.32103337,119310.0,119300.0,0.73472083]
[1752797377741,0.32103337,119310.0,119300.0,0.79310277]
[1752797378001,0.15340255,119310.0,119300.0,0.80148429]
[1752797378219,0.15340255,119310.0,119300.0,0.80148394]
[1752797379416,0.32941454,119310.0,119300.0,0.80148394]
[1752797379721,0.32941454,119310.0,119300.0,0.79310221]
[1752797380050,0.32941454,119310.0,119300.0,0.78472041]
[1752797380552,0.32941454,119310.0,119300.0,0.77633882]
[1752797381192,0.32301337,119310.0,119300.0,0.12029]
[1752797381618,0.32301337,119310.0,119300.0,0.067]
[1752797382257,0.32301337,119310.0,119300.0,0.017]
[1752797382402,0.32201337,119310.0,119300.0,0.009]
[1752797382830,0.32201337,119310.0,119300.0,0.013]
[1752797383650,0.32001337,119310.0,119300.0,0.004]
[1752797383848,0.32101337,119310.0,119300.0,0.009]
[1752797384054,0.32248337,119310.0,119300.0,0.009]
[1752797384689,0.32101337,119310.0,119300.0,0.009]
[1752797388563,0.32248337,119310.0,119300.0,0.009]
[1752797388769,0.35992422,119310.0,119300.0,0.009]
[1752797388971,0.4613345,119310.0,119300.0,0.009]
[1752797389185,0.4454345,119310.0,119300.0,0.009]
[1752797389394,0.4225345,119310.0,119300.0,0.009]
[1752797389597,0.4210645,119310.0,119300.0,0.009]
[1752797395311,0.4210645,119310.0,119300.0,0.0336]
[1752797397122,0.4210645,119310.0,119300.0,0.0564]
[1752797399131,0.4210645,119310.0,119300.0,0.0336]
[1752797399366,0.4210645,119310.0,119300.0,0.009]
[1752797400312,0.4210645,119310.0,119300.0,0.057]
[1752797400724,0.4210645,119310.0,119300.0,0.06021]
[1752797401244,0.2894245,119310.0,119300.0,0.06021]
[1752797401399,0.4210245,119310.0,119300.0,0.06021]
[1752797402260,0.2894245,119310.0,119300.0,0.06021]
[1752797402515,0.4210245,119310.0,119300.0,0.06021]
[1752797404375,0.31899337,119310.0,119300.0,0.06227]
[1752797404804,0.32097337,119310.0,119300.0,0.0335]
[1752797405427,0.32097337,119310.0,119300.0,0.009]
[1752797405662,0.43221433,119310.0,119300.0,0.009]
[1752797405883,0.43368433,119310.0,119300.0,0.009]
[1752797407802,0.43221433,119310.0,119300.0,0.009]
[1752797409921,0.89311247,119310.0,119300.0,0.009]
[1752797410787,0.89311247,119310.0,119300.0,0.005]
[1752797411217,0.90311247,119310.0,119300.0,0.006]
[1752797411418,0.90211247,119310.0,119300.0,0.001]
[1752797411633,0.91711247,119310.0,119300.0,0.003]
[1752797412076,0.85072518,119310.0,119300.0,0.003]
[1752797416755,0.85072518,119310.0,119300.0,1e-08]
[1752797417191,0.19898032,119280.0,119270.0,0.0486]
[1752797417393,0.4180706,119280.0,119270.0,0.04865028]
[1752797417716,0.4195406,119280.0,119270.0,5.028e-05]
[1752797417945,0.4447126,119280.0,119270.0,5.028e-05]
[1752797418336,0.4680126,119280.0,119270.0,5.028e-05]
[1752797418755,0.4690126,119280.0,119270.0,0.00605028]
[1752797419086,0.4447126,119280.0,119270.0,5.028e-05]
[1752797419493,0.4497126,119280.0,119270.0,0.00105028]
[1752797419715,0.4447126,119280.0,119270.0,5.028e-05]
[1752797420113,0.4597126,119280.0,119270.0,0.00205028]
[1752797421032,0.4607126,119280.0,119270.0,0.00905028]
[1752797421451,0.4597126,119280.0,119270.0,0.00205028]
[1752797421903,0.5061126,119280.0,119270.0,0.00305028]
[1752797422125,0.53957095,119270.0,119260.0,0.002]
[1752797422358,0.64442123,119270.0,119260.0,0.00205028]
[1752797422557,0.62852123,119270.0,119260.0,0.00205028]
[1752797423300,0.60602123,119270.0,119260.0,0.00305028]
[1752797424166,0.60702123,119270.0,119260.0,0.00705028]
[1752797424364,0.73862123,119270.0,119260.0,0.00705028]
[1752797427264,0.73715123,119270.0,119260.0,0.00705028]
[1752797428975,0.76232623,119270.0,119260.0,0.00705028]
[1752797432533,0.76232623,119270.0,119260.0,10.16265028]
[1752797433211,0.76232623,119270.0,119260.0,10.20805028]
[1752797435700,0.76232623,119270.0,119260.0,10.16265028]
[1752797436607,0.76132623,119270.0,119260.0,10.15865028]
[1752797437075,0.76732623,119270.0,119260.0,10.18265028]
[1752797437526,0.77632623,119270.0,119260.0,10.18265028]
[1752797437732,0.77628623,119270.0,119260.0,10.18265028]
[1752797441736,0.77628623,119270.0,119260.0,10.15865028]
[1752797442503,0.64472623,119270.0,119260.0,10.15865028]
[1752797442794,0.77628623,119270.0,119260.0,10.20806028]
[1752797444257,0.42376208,119270.0,119260.0,10.20806028]
[1752797445979,0.42574208,119270.0,119260.0,10.20806028]
[1752797446425,0.76721208,119270.0,119260.0,10.15865028]
[1752797447349,0.79238808,119270.0,119260.0,10.15865028]
[1752797449326,0.81558808,119270.0,119260.0,10.15865028]
[1752797449735,0.81558808,119270.0,119260.0,0.00305028]
[1752797450145,0.79238808,119270.0,119260.0,0.00305028]
[1752797450583,0.79091808,119270.0,119260.0,0.00305028]
[1752797453176,0.79091808,119270.0,119260.0,0.02775028]
[1752797454662,0.79091808,119270.0,119260.0,0.00305028]
[1752797455100,0.79091808,119270.0,119260.0,0.05035028]
[1752797455337,0.79091808,119270.0,119260.0,0.02575028]
[1752797455563,0.79091808,119270.0,119260.0,0.05035028]
[1752797457537,0.79091808,119270.0,119260.0,0.00305028]
[1752797458400,0.79091808,119270.0,119260.0,0.04855028]
[1752797459360,0.79091808,119270.0,119260.0,0.02575028]
[1752797460720,0.79091808,119270.0,119260.0,0.00305028]
[1752797461879,0.79238808,119270.0,119260.0,0.00305028]
[1752797462559,0.79091808,119270.0,119260.0,0.00305028]
[1752797463242,0.52447055,119260.0,119250.0,0.047]
[1752797463451,0.39062899,119270.0,119260.0,6.78369154]
[1752797463671,0.39062899,119270.0,119260.0,6.69902734]
[1752797463908,0.39062899,119270.0,119260.0,6.55307763]
[1752797464091,0.38362899,119270.0,119260.0,6.55307763]
[1752797464311,0.46013927,119270.0,119260.0,6.55307763]
[1752797464547,0.42325927,119270.0,119260.0,6.57567763]
[1752797464784,0.47325927,119270.0,119260.0,6.60007763]
[1752797465010,0.46125927,119270.0,119260.0,6.60331763]
[1752797465247,0.47525927,119270.0,119260.0,6.60331763]
[1752797465501,0.48980012,119270.0,119260.0,6.55307763]
[1752797465837,0.83880012,119270.0,119260.0,6.55407763]
[1752797466051,0.65604012,119270.0,119260.0,6.60431763]
[1752797466293,0.65604012,119270.0,119260.0,6.60647763]
[1752797466533,0.78884012,119270.0,119260.0,6.60647763]
[1752797466765,0.32369299,119270.0,119260.0,6.60647763]
[1752797467002,0.19081299,119270.0,119260.0,6.60647763]
[1752797467241,0.31473299,119270.0,119260.0,6.60547763]
[1752797467469,0.30073299,119270.0,119260.0,6.60547763]
[1752797467708,0.31673299,119270.0,119260.0,6.60647763]
[1752797468185,0.01751028,119270.0,119260.0,6.79833271]
[1752797468431,0.1676727,119280.0,119270.0,0.0462]
[1752797468657,0.30075699,119280.0,119270.0,0.22443109]